Cogmind - Beta 10.2 @@@ ROGUE MODE // 2021.02.20 @ 02:18:15 Player: CrossedViper Result: Destroyed by P-80 Master with Gamma Rifle Performance ------------- Evolutions (9) 4500 Regions Visited (31) 6200 Robots Destroyed (448) 2240 Value Destroyed (20174) 20174 Prototype IDs (60) 1200 Alien Tech Used (2) 400 Bonus (537) 537 TOTAL SCORE: 35251 Bonus ------- High Alert Combat Kills 1011 Follower Combat Kills 1441 Network Hubs Disabled 400 Met Data Miner 300 Met Zhirov 300 Met Warlord at Base 500 MAIN.C Attacked Warlord 500 Warlord Defense Kill 620 Met Warlord at Research 2000 Friendly Fire -6535 Cogmind --------- Core Integrity 0/1600 Matter 266/300 Energy 89/100 System Corruption 18% Temperature Cool (0) Movement Core (50) Location -1/Access Parts ------- > --- POWER (3) -------- (None) > --- PROPULSION (4) --- (None) > --- UTILITY (13) ----- Advanced Heat Sink Advanced Signal Interpreter > --- WEAPON (5) ------- (None) > --- INVENTORY (4) ---- High-capacity Storage Unit Peak State ------------ > --- POWER ------------ Reinforced Antimatter Reactor Reinforced Quantum Reactor > --- PROPULSION ------- Heavy Treads Centrium Wheel Centrium Wheel > --- UTILITY ---------- High-capacity Storage Unit High-capacity Storage Unit High-capacity Storage Unit Experimental Targeting Computer Experimental Core Analyzer Advanced Armor Integrity Analyzer Centrium Light Armor Plating Centrium Light Armor Plating Centrium Light Armor Plating Heavy Reactive Plating Advanced Force Field Advanced Hacking Suite > --- WEAPON ----------- Gamma Rifle Heavy Machine Gun Improved KE Penetrator Linear Accelerator > --- INVENTORY -------- Vortex Chain Reactor Medium Treads Biometal Medium Treads Advanced Heavy Treads Centrium Heavy Treads Advanced Power Amplifier High-capacity Storage Unit Improved Energy Well Advanced Signal Interpreter Experimental Targeting Computer Thermal Barrier EM Dispersion Field Point Defense Array Ghost Barrier Transdimensional Reconstructor 01-MTF's Shockpuncher HERF Cannon Proton Burst Cannon EMDS EMDS Gamma Bomb Array Plasma Lance Plasma Lance [Rating: 171] Favorites ----------- Power Quantum Reactor Engine Reinforced Ion Engine Power Core Light Nuclear Core Reactor Quantum Reactor Propulsion Light Treads Treads Light Treads Leg Aluminum Leg Wheel Centrium Wheel Hover Unit Cooled Gravmag System Utility High-capacity Storage Unit Device Improved Cooling System Storage High-capacity Storage Unit Processor Experimental Targeting Computer Hackware Advanced Hacking Suite Protection Centrium Medium Armor Plating Weapon KE Penetrator Energy Gun Beam Rifle Energy Cannon Heavy Plasma Cannon Ballistic Gun KE Penetrator Ballistic Cannon Improved Light Cannon Launcher Gamma Bomb Array Special Weapon Plasma Cutter Slashing Weapon Katana Piercing Weapon Plasma Lance Build | -11 -10 -10 -9 -9 -8 -8 -7 -7 -7 -7 -7 -7 -6 -6 -6 -6 -6 -6 -5 -5 -5 -5 -4 -4 -4 -4 -4 -3 -3 -2 -1 ------- Run | Scr Mat Min Mat Min Mat Sto Fac Was Fac Low Low Dat Pro Fac Ext Cet Arc Hub Fac Upp Upp Zhi Pro Fac Upp Upp War Pro Res Res Acc Slots Evolved 18 | . . . 2 . 2 . 2 . . . . . . 2 . . . . 2 . . . . 2 . . . . 2 2 2 Power 2 | . . . . . . . . . . . . . . . . . . . 1 . . . . . . . . . . . 1 Propulsion 2 | . . . . . . . 1 . . . . . . . . . . . . . . . . 1 . . . . . . . Utility 11 | . . . 1 . 2 . 1 . . . . . . 1 . . . . 1 . . . . 1 . . . . 2 2 . Weapon 3 | . . . 1 . . . . . . . . . . 1 . . . . . . . . . . . . . . . . 1 Parts Attached 373 | . 12 4 22 10 10 31 5 19 2 9 10 . 7 10 7 8 4 9 5 3 3 3 2 10 8 9 10 6 21 71 43 Power 33 | . 1 . 2 2 . 3 . 2 . . . . 1 . 2 1 . 1 1 . . 1 . . . . 3 . 3 4 6 Engine 7 | . 1 . 2 2 . 2 . . . . . . . . . . . . . . . . . . . . . . . . . Core 3 | . . . . . . . . . . . . . . . . . . . 1 . . . . . . . 1 . . . 1 Reactor 23 | . . . . . . 1 . 2 . . . . 1 . 2 1 . 1 . . . 1 . . . . 2 . 3 4 5 Propulsion 64 | . 6 1 7 2 . 5 1 4 1 1 1 . . 1 1 1 . . 1 . . . . 1 2 2 1 . 6 10 9 Treads 48 | . 4 . 7 2 . 4 1 1 1 1 1 . . 1 1 1 . . 1 . . . . 1 2 2 1 . 2 10 4 Leg 6 | . 1 . . . . . . . . . . . . . . . . . . . . . . . . . . . 1 . 4 Wheel 5 | . 1 1 . . . . . . . . . . . . . . . . . . . . . . . . . . 2 . 1 Hover 5 | . . . . . . 1 . 3 . . . . . . . . . . . . . . . . . . . . 1 . . Flight . | . . . . . . . . . . . . . . . . . . . . . . . . . . . . . . . . Utility 140 | . 2 3 6 3 6 7 4 7 . 1 7 . 4 2 3 4 . 7 2 3 3 1 1 7 2 1 5 . 4 38 7 Device 57 | . . 2 . 1 1 1 2 3 . . 4 . 2 1 2 2 . 3 1 1 2 . . 1 2 1 4 . 3 17 1 Storage 20 | . 2 1 2 . . 1 1 1 . . . . . 1 . 1 . . . . . . . 3 . . . . . 4 3 Processor 14 | . . . . . . . . 1 . . . . 1 . . . . 1 1 . . . . 1 . . 1 . . 7 1 Hackware 4 | . . . . . . . . . . . . . . . . . . . . . . . . 1 . . . . . 2 1 Protection 45 | . . . 4 2 5 5 1 2 . 1 3 . 1 . 1 1 . 3 . 2 1 1 1 1 . . . . 1 8 1 Artifact . | . . . . . . . . . . . . . . . . . . . . . . . . . . . . . . . . Weapon 136 | . 3 . 7 3 4 16 . 6 1 7 2 . 2 7 1 2 4 1 1 . . 1 1 2 4 6 1 6 8 19 21 Energy Gun 40 | . . . 3 1 2 1 . 3 1 5 2 . 2 . . . 2 . . . . . . . 1 2 1 2 4 4 4 Energy Cannon 26 | . . . . . . 4 . . . . . . . 5 1 . . . . . . . . . 1 2 . 4 1 3 5 Ballistic Gun 50 | . . . 3 . 2 6 . 3 . 2 . . . 1 . . 2 1 1 . . 1 1 2 2 2 . . 3 6 12 Ballistic Cannon 6 | . 3 . 1 . . . . . . . . . . . . . . . . . . . . . . . . . . 2 . Launcher 8 | . . . . . . 3 . . . . . . . 1 . 2 . . . . . . . . . . . . . 2 . Special Weapon 3 | . . . . 1 . 2 . . . . . . . . . . . . . . . . . . . . . . . . . Impact Weapon . | . . . . . . . . . . . . . . . . . . . . . . . . . . . . . . . . Slashing Weapon 1 | . . . . 1 . . . . . . . . . . . . . . . . . . . . . . . . . . . Piercing Weapon 2 | . . . . . . . . . . . . . . . . . . . . . . . . . . . . . . 2 . Special Melee Weapon . | . . . . . . . . . . . . . . . . . . . . . . . . . . . . . . . . Unidentified Prototypes 32 | . . 2 2 . . 3 3 . . . 2 . . . . 2 1 3 . . . 3 . . 1 . 4 . 1 5 . Parts Lost 135 | . . . 1 5 3 3 . 3 1 7 1 . . . 1 . . 1 2 . 1 . . 5 7 1 1 7 9 37 39 Power 9 | . . . . . . . . . . . . . . . 1 . . . . . . . . . . . . . 1 2 5 Propulsion 28 | . . . 1 . . . . 1 . 1 . . . . . . . . 1 . . . . 2 . 1 1 3 1 7 9 Utility 37 | . . . . . . 2 . . . 2 . . . . . . . . 1 . 1 . . 2 3 . . . 3 15 8 Weapon 61 | . . . . 5 3 1 . 2 1 4 1 . . . . . . 1 . . . . . 1 4 . . 4 4 13 17 Highest Loss Streak 21 | . . . 1 3 2 1 . 3 1 7 1 . . . 1 . . 1 2 . 1 . . 4 2 1 1 3 4 14 21 Average Slot Usage (%) 86 | . 86 100 97 78 91 99 93 84 85 89 88 92 85 80 85 92 90 81 79 93 92 90 88 81 78 84 99 85 79 78 63 Engine 2 | . 14 14 11 11 9 9 7 . . . . . . . . . . . . . . . . . . . . . . . . Reactor 5 | . . . . . . . . 6 7 7 7 7 7 6 5 6 6 6 5 5 5 7 11 10 10 10 6 10 7 7 8 Treads 12 | . 26 16 18 22 18 17 23 5 10 15 14 15 15 13 13 13 13 13 10 11 11 11 11 8 7 15 20 10 5 5 6 Wheel 1 | . . 11 2 . . . . . . . . . . . . . . . . . . . . . . . . . 4 6 . Device 7 | . . . . 1 6 9 7 10 7 7 10 7 8 12 13 18 20 7 4 10 10 5 5 5 6 11 17 15 12 7 9 Storage 14 | . 15 27 22 13 9 13 16 11 15 15 15 15 15 13 13 14 13 13 11 11 11 11 11 12 15 15 15 15 14 12 8 Processor 6 | . . . . . . . . 7 7 7 7 7 7 6 6 6 6 6 10 11 11 11 11 7 10 10 8 10 9 13 14 Hackware 1 | . . . . . . . . . . . . . . . . . . . . . . . . 4 5 5 5 5 4 3 1 Protection 8 | . . . 10 17 28 22 15 14 15 12 7 15 7 6 6 6 6 6 4 11 10 13 11 10 5 . . . 2 5 2 Energy Gun 5 | . . . 12 10 11 . . 10 13 11 15 15 18 10 . . 11 7 1 . . . . . . 4 10 7 6 1 1 Energy Cannon 2 | . . . . . . 4 . . . . . . . 5 26 13 5 . . . . . . . 3 3 . 4 1 . 2 Ballistic Gun 10 | . 9 . 6 1 8 17 15 4 7 9 7 7 4 4 . . 5 18 21 23 23 23 23 21 11 6 9 5 5 9 6 Ballistic Cannon 2 | . 17 28 12 . . . . . . . . . . . . . . . . . . . . . . . . . . 1 . Naked Turns . | . . . . . . . . . . . . . . . . . . . . . . . . . . . . . . . . Heaviest Build 254 | 9 59 59 79 79 76 79 69 83 83 81 89 83 84 117 119 114 112 135 139 115 115 125 131 179 167 167 156 164 171 254 194 Greatest Support 155 | 20 40 40 40 40 40 40 60 70 90 90 90 90 90 98 98 108 108 108 108 103 103 103 103 103 136 136 109 108 63 145 155 Greatest Overweight (x) 46 | . 3 5 7 1 1 3 1 2 1 . . . . 1 1 1 1 1 1 1 1 1 1 2 2 2 1 6 46 7 11 Average Overweight (x) 1 | . . 4 2 1 1 1 1 . . . . . . . 1 1 . . . 1 1 1 1 1 1 1 1 3 5 4 . Largest Inventory Capacity 52 | 6 18 18 18 18 12 16 16 16 16 16 16 16 16 18 18 18 18 18 18 18 18 18 18 28 28 28 28 28 28 52 28 Average Capacity 19 | 6 12 17 17 13 12 13 16 12 16 16 16 16 16 16 18 18 18 18 18 18 18 18 18 23 28 28 28 28 28 26 20 Most Carried 28 | 6 8 8 18 18 12 16 15 16 16 16 16 16 16 18 18 18 18 18 18 17 16 18 18 20 24 28 28 28 26 28 15 Average Carried 16 | 6 5 6 17 12 9 12 14 11 16 15 15 16 15 16 17 17 18 17 17 15 15 16 17 17 17 26 27 25 21 24 8 Final Capacity 28 | 6 18 18 18 12 12 16 16 16 16 16 16 16 16 18 18 18 18 18 18 18 18 18 18 28 28 28 28 28 28 4 4 Final Carried 28 | 6 4 8 18 11 12 16 15 16 16 16 16 16 16 18 17 18 18 18 18 15 16 18 18 17 24 28 28 23 26 3 1 Class Distribution -------------------- 35% | Scavenger-Tank 22% | Scavenger-Gunner 15% | Scavenger-Mutant 12% | Mutant 8% | Tank Dominant Class ---------------- Mutant | -10/Materials Mutant | -10/Mines Tank | -9/Materials Mutant | -9/Mines Scavenger-Tank | -8/Materials Scavenger-Tank | -8/Storage Scavenger-Mutant | -7/Factory Scavenger-Mutant | -7/Waste Scavenger-Tank | -7/Factory Scavenger-Tank | -7/Lower Caves Scavenger-Tank | -7/Lower Caves Scavenger-Tank | -7/Data Miner Scavenger-Tank | -6/Proximity Caves Scavenger-Tank | -6/Factory Scavenger-Gunner | -6/Extension Scavenger-Mutant | -6/Cetus Scavenger-Gunner | -6/Archives Scavenger-Tank | -6/Hub_04(d) Scavenger-Gunner | -5/Factory Scavenger-Tank | -5/Upper Caves Scavenger-Tank | -5/Upper Caves Scavenger-Tank | -5/Zhirov Scavenger-Tank | -4/Proximity Caves Scavenger-Tank | -4/Factory Scavenger-Gunner | -4/Upper Caves Scavenger-Gunner | -4/Upper Caves Scavenger-Gunner | -4/Warlord Scavenger-Gunner | -3/Proximity Caves Scavenger-Mutant | -3/Research Scavenger-Gunner | -2/Research Scavenger-Gunner | -1/Access Resources | -11 -10 -10 -9 -9 -8 -8 -7 -7 -7 -7 -7 -7 -6 -6 -6 -6 -6 -6 -5 -5 -5 -5 -4 -4 -4 -4 -4 -3 -3 -2 -1 ----------- Run | Scr Mat Min Mat Min Mat Sto Fac Was Fac Low Low Dat Pro Fac Ext Cet Arc Hub Fac Upp Upp Zhi Pro Fac Upp Upp War Pro Res Res Acc Matter Collected 12536 | 200 379 120 1282 113 197 1104 . 264 75 72 241 . 64 205 89 123 . 1135 538 232 121 62 302 816 533 150 189 111 647 1942 1230 Remotely . | . . . . . . . . . . . . . . . . . . . . . . . . . . . . . . . . Salvage Created 25251 | . 838 82 1678 98 489 1795 . 908 222 401 604 . 110 625 498 258 61 2035 1433 450 229 130 587 1623 1104 301 235 588 1570 3644 2655 Parts 1229 | . 46 9 116 2 40 98 . 26 17 13 15 . 6 21 14 18 2 103 89 31 21 5 36 88 29 9 8 29 76 147 115 Haulers Intercepted 19 | . 2 . 5 . 3 3 . . . . 1 . . 2 1 . . 1 . . . . . . . . . . . 1 . Recyclers Shooed 16 | . 3 . 2 . . 2 . . . . . . . 1 1 . . . 1 . . . . 1 . . . . 1 . 4 Parts Field Recycled . | . . . . . . . . . . . . . . . . . . . . . . . . . . . . . . . . Retrieved Matter . | . . . . . . . . . . . . . . . . . . . . . . . . . . . . . . . . Parts Self-Destructed 237 | . . . . . . . . . . 5 19 . 2 . . . . . . 31 21 4 36 . 17 . 74 28 . . . Prevented 30 | . . . . . . . . . . 5 . . . . . . . . . . . . . . 4 9 12 . . . . Kills | -11 -10 -10 -9 -9 -8 -8 -7 -7 -7 -7 -7 -7 -6 -6 -6 -6 -6 -6 -5 -5 -5 -5 -4 -4 -4 -4 -4 -3 -3 -2 -1 ------- Run | Scr Mat Min Mat Min Mat Sto Fac Was Fac Low Low Dat Pro Fac Ext Cet Arc Hub Fac Upp Upp Zhi Pro Fac Upp Upp War Pro Res Res Acc Combat Hostiles Destroyed 349 | . 16 5 31 8 8 36 . . 4 8 8 . . 7 6 5 1 19 18 7 8 . 13 22 14 4 4 11 18 41 27 Melee 9 | . . . . 2 . . . . . . . . . . . . . . . . . . . . . . . . . 7 . Guns 227 | . 9 . 11 6 8 15 . . 4 5 8 . . 1 . . . 19 18 7 8 . 13 22 9 . 4 9 9 21 21 Cannons 58 | . 7 5 20 . . 9 . . . . . . . . 6 . 1 . . . . . . . 1 1 . 2 1 3 2 AOE 21 | . . . . . . 12 . . . 2 . . . 3 . 3 . . . . . . . . . . . . . 1 . Classes Destroyed 25 | . 6 1 3 1 1 2 . 3 1 . . . . . . . . . . . . . . . 1 . 2 . . 4 . Worker 20 | . 1 . 4 . 2 2 . . 1 . . . . . . . . 2 1 . . . . 1 . . . . 2 . 4 Builder 24 | . 2 . 4 . . 1 . . . . . . . . . . . 4 4 . . . . 6 . . . . . . 3 Hauler 19 | . 2 . 5 . 3 3 . . . . 1 . . 2 1 . . 1 . . . . . . . . . . . 1 . Recycler 16 | . 2 . 5 . . 3 . . . . . . . . . . . 1 1 . . . . . . . . . 1 . 3 Operator 5 | . . . 3 . . 1 . . . . . . . . . . . . . . . . . . . . . . 1 . . Watcher 3 | . 2 . . . . . . . . . . . . . . 1 . . . . . . . . . . . . . . . Swarmer 72 | . . 3 11 3 3 6 . . 1 2 . . . 1 . 3 . . 3 1 8 . 9 4 . . . 5 . 4 5 Grunt 122 | . 16 2 9 . 2 16 . . . 4 7 . . 4 4 . . 8 8 1 . . 2 11 8 3 . 3 8 . 6 Brawler 7 | . . . . . . 3 . . . . . . . 1 . . . . . . . . . 1 2 . . . . . . Duelist 8 | . . . 2 . . 2 . . . . 1 . . . . . . . . . . . 1 . . . . 1 1 . . Protector 4 | . . . . . . 1 . . . . . . . . . . . 2 . . . . . . . . 1 . . . . Sentry 42 | . . . 9 . 2 8 . . 2 1 . . . . 2 . 1 1 4 1 . . 1 2 1 1 . . 4 1 1 Demolisher 2 | . . . . . . . . . . . . . . . . . . . . . . . . . . . 1 . . 1 . Hunter 21 | . . . . . 1 . . . . 1 . . . . . . . . 1 2 . . . . 2 . . . . 2 12 Programmer 22 | . . . . . . . . . 1 . . . . 1 . . . 2 2 2 . . . 4 . . . 2 5 . 3 Behemoth 1 | . . . . . . . . . . . . . . . . . . . . . . . . . . . 1 . . . . Compactor 1 | . . . . . . . . 1 . . . . . . . . . . . . . . . . . . . . . . . Cetus Guard 2 | . . . . . . . . . . . . . . . . 2 . . . . . . . . . . . . . . . Enhanced Grunt 2 | . . . . . . . . . . . . . 1 . . . . 1 . . . . . . . . . . . . . Lightning 6 | . . . . . . . . . . . . . . . . . . 6 . . . . . . . . . . . . . Striker 7 | . . . . . . . . . . . . . . . . . . . . . . . . . . . 1 . . 6 . Assembled 5 | . . . . 5 . . . . . . . . . . . . . . . . . . . . . . . . . . . Surgeon 1 | . . . . . . . . 1 . . . . . . . . . . . . . . . . . . . . . . . Wasp 3 | . . . . . . . . 2 . . . . . . . . . . . . . . . . . . . . . 1 . Thug 12 | . . . . . . . . 6 . . . . . . . . . . . . . . . . . . . . . 6 . Butcher 1 | . . . . . . . . . . . . . . . . . . . . . . . . . . . . . . 1 . Martyr 2 | . . . . . . . . 2 . . . . . . . . . . . . . . . . . . . . . . . Guerrilla 2 | . . . . . . . . . . . . . . . . . . . . . . . . . . . . . . 2 . Wizard 6 | . . . . . . . . . . . . . . . . . . . . . . . . . . . . . . 6 . Fireman 1 | . . . . . . . . . . . . . . . . . . . . . . . . . . . . . . 1 . Mutant 9 | . . . . . . . . . . . . . . . . . . . . . . . . . 2 . . . . 7 . Dragon 2 | . . . . . . . . . . . . . . . . . . . . . . . . . . . . . . 2 . Hydra 1 | . . . . . . . . . . . . . . . . . . . . . . . . . . . . . . 1 . Borebot 1 | . . . . . . . . . . . . . . . . . . . . . . . . . . . . . . 1 . Best Kill Streak 11 | . 7 3 7 6 4 9 . . 1 7 5 . . 5 2 3 1 9 7 4 4 . 4 11 5 3 3 5 11 6 9 Combat Bots Only 9 | . 2 3 6 6 3 7 . . 1 7 5 . . 5 2 3 1 4 6 3 4 . 4 9 5 3 3 5 5 6 4 Max Kills in Single Turn 3 | . 1 1 2 2 1 3 . 2 1 2 1 . 1 3 1 3 1 2 3 1 3 . 2 2 1 1 1 1 2 2 2 Gunslinging 2 | . . . . . . . . . . . . . . . . . . . . . 2 . . 1 . . . . . 1 . Exploded 3 | . . . . . . 3 . . . 2 . . . 2 . 3 . . . . . . . . . . . . . 1 . Melee 1 | . . . . 1 . . . . . . . . . . . . . . . . . . . . . . . . . 1 . Uniques/NPCs Destroyed 1 | . . . . . . 1 . . . . . . . . . . . . . . . . . . . . . . . . . 01-MTF (-8/Storage) Combat | -11 -10 -10 -9 -9 -8 -8 -7 -7 -7 -7 -7 -7 -6 -6 -6 -6 -6 -6 -5 -5 -5 -5 -4 -4 -4 -4 -4 -3 -3 -2 -1 -------- Run | Scr Mat Min Mat Min Mat Sto Fac Was Fac Low Low Dat Pro Fac Ext Cet Arc Hub Fac Upp Upp Zhi Pro Fac Upp Upp War Pro Res Res Acc Damage Taken 39732 | . 612 204 1103 1700 829 1460 . 211 682 1101 713 . 35 664 465 143 47 1311 1211 403 147 . 426 2095 1215 157 643 1204 1603 10491 8857 Core 4620 | . 151 48 147 249 73 122 . 40 12 121 81 . . 38 50 28 . 103 55 . 14 . 31 254 62 44 57 59 42 1135 1604 Absorbed by Shields 900 | . . . . . . . . . . . . . . . 84 116 . . . . . . . . . . . . . 700 . Reduced by Siege Mode 991 | . . . . . . . . . 17 75 38 . 3 12 5 . . 23 . 3 3 . 14 67 73 . . . . 204 454 Core Remaining (%) 58 | 100 . 20 . 1 . 64 . . . . . . 63 . . . . 74 . . . . 90 . . . . 58 96 16 . Volleys Fired 1192 | . 81 16 131 10 31 142 . 120 20 20 28 . 5 23 21 4 3 78 53 12 7 2 16 53 41 8 11 22 54 106 74 Largest 5 | . 2 2 3 3 3 3 . 3 3 3 3 . 3 4 4 2 4 4 4 4 4 4 4 4 4 2 4 4 4 4 5 Hottest 360 | . 78 78 151 135 144 114 . 125 183 179 170 . 145 360 360 75 340 226 134 134 134 134 136 136 187 158 272 304 259 223 266 Shots Fired 2953 | . 157 32 298 22 57 278 . 126 50 54 74 . 7 57 74 8 8 277 145 48 28 8 64 182 105 10 44 71 128 271 270 Gun 2337 | . 76 . 153 22 57 173 . 126 50 54 74 . 7 25 . . 2 277 145 48 28 8 64 182 88 2 44 59 110 217 246 Cannon 548 | . 81 32 145 . . 76 . . . . . . . 24 74 . 6 . . . . . . . 17 8 . 12 18 31 24 Launcher 54 | . . . . . . 15 . . . . . . . 8 . 8 . . . . . . . . . . . . . 23 . Special 14 | . . . . . . 14 . . . . . . . . . . . . . . . . . . . . . . . . . Kinetic 2005 | . 157 32 230 6 23 158 . 6 20 20 23 . 1 9 . . . 230 145 48 28 8 64 182 78 . 18 22 56 223 218 Thermal 625 | . . . 68 16 34 105 . 10 26 8 51 . 2 40 74 . 8 47 . . . . . . 10 2 26 49 22 15 12 Explosive 15 | . . . . . . 15 . . . . . . . . . . . . . . . . . . . . . . . . . Electromagnetic 308 | . . . . . . . . 110 4 26 . . 4 8 . 8 . . . . . . . . 17 8 . . 50 33 40 Robot Hit Streak 39 | . 13 6 18 5 21 16 . 23 12 22 18 . 6 10 11 2 3 17 23 25 11 8 14 28 20 28 18 30 16 21 39 Robot Miss Streak 6 | . 5 3 5 3 4 5 . 3 5 2 2 . 1 3 4 . 1 6 2 2 4 1 3 4 2 1 2 1 4 4 2 Penetration Max 2 | . . . . . . 1 . . . 1 . . . . . . . 1 1 . . . 1 1 1 . 1 1 2 1 1 Secondary Targets 47 | . 1 . . 2 . . . . . 2 2 . . . . . . 4 2 1 5 . 1 10 2 . 1 2 2 5 5 Max Gunslinging Chain 2 | . 1 . . 1 . . . . . 1 1 . . . . . . 1 1 1 2 . 1 2 1 . 1 1 1 1 1 Shots Hit Robots 2080 | . 96 17 169 14 41 188 . 110 34 43 64 . 7 32 49 2 3 185 73 33 20 6 35 121 78 9 38 56 105 226 226 Core Hits 966 | . 41 6 69 9 23 95 . 52 9 18 21 . 2 21 12 13 2 78 41 15 10 2 19 57 25 5 11 27 51 142 90 Critical Hits 152 | . 3 . 1 . . 3 . . . 1 . . . 1 1 . . 17 19 3 1 1 6 21 18 2 6 5 12 17 14 Critical Kills 52 | . 1 . 1 . . . . . . . . . . . . . . 5 9 1 . . 3 7 7 . 3 1 5 5 4 Critical Parts Destroyed 91 | . 2 . . . . 2 . . . 1 . . . 1 1 . . 12 10 2 1 1 3 13 11 2 2 3 6 9 9 Melee Attacks 33 | . . . . . . . . . . . . . . . . . . . . . . . . . . . . . . 33 . Impact . | . . . . . . . . . . . . . . . . . . . . . . . . . . . . . . . . Slashing . | . . . . . . . . . . . . . . . . . . . . . . . . . . . . . . . . Piercing 33 | . . . . . . . . . . . . . . . . . . . . . . . . . . . . . . 33 . Sneak Attacks . | . . . . . . . . . . . . . . . . . . . . . . . . . . . . . . . . Combat Hostiles . | . . . . . . . . . . . . . . . . . . . . . . . . . . . . . . . . Follow-up Attacks 6 | . . . . . . . . . . . . . . . . . . . . . . . . . . . . . . 6 . Damage Inflicted 55200 | . 1337 311 2810 311 766 5048 . 2062 648 903 1147 . 132 1360 1774 593 199 4797 2488 838 375 164 752 3437 2176 421 1053 1379 3228 9158 5533 Guns 37696 | . 451 . 1362 278 678 2223 . 1239 634 667 1147 . 132 195 . . . 4797 2312 806 375 164 752 3437 1493 25 1053 1134 2198 5393 4751 Cannons 10000 | . 878 311 1383 . . 1052 . . . . . . . 514 1747 . 199 . . . . . . . 683 396 . 245 928 950 714 Explosions 5767 | . . . . . . 1666 . 823 . 236 . . . 646 . 593 . . 148 . . . . . . . . . 89 1526 40 Melee 1253 | . . . . . . . . . . . . . . . . . . . . . . . . . . . . . . 1253 . Ramming 441 | . 8 . 65 33 88 64 . . 14 . . . . 5 27 . . . 28 32 . . . . . . . . 13 36 28 Kinetic 32382 | . 1329 311 2096 76 282 2017 . 96 234 285 444 . 28 77 . . . 3679 2312 806 375 164 752 3437 1337 . 564 414 1167 5782 4318 Thermal 11964 | . . . 649 202 396 1301 . 1012 354 257 703 . . 873 1747 105 199 1118 148 . . . . . 156 25 489 965 615 303 347 Explosive 1666 | . . . . . . 1666 . . . . . . . . . . . . . . . . . . . . . . . . . Electromagnetic 7494 | . . . . . . . . 954 46 361 . . 104 405 . 488 . . . . . . . . 683 396 . . 1433 1784 840 Impact . | . . . . . . . . . . . . . . . . . . . . . . . . . . . . . . . . Slashing . | . . . . . . . . . . . . . . . . . . . . . . . . . . . . . . . . Piercing 1253 | . . . . . . . . . . . . . . . . . . . . . . . . . . . . . . 1253 . Highest Corruption 17 | . 2 2 . 5 . 1 . . 1 1 1 1 1 4 4 4 4 8 . . . . . 2 2 2 2 3 4 9 17 Average Corruption 2 | . 2 2 . 5 . 1 . . 1 1 1 1 1 2 4 4 4 5 . . . . . 1 2 2 2 2 2 4 3 Corruption Purged . | . . . . . . . . . . . . . . . . . . . . . . . . . . . . . . . . Effects 202 | . 2 7 . 13 . 6 . . . 4 1 . 1 2 23 9 2 53 . . . . . 4 9 4 1 9 1 37 14 Message Errors 47 | . . 5 . 3 . 1 . . . 2 . . 1 1 7 4 2 9 . . . . . . 1 2 . 3 . 5 1 Matter Fused 35 | . . . . 5 . . . . . . . . . . 3 3 . 7 . . . . . . . . . 2 . 12 3 Heat Flow Errors 17 | . . 1 . 1 . . . . . . . . . . 3 . . 2 . . . . . . 1 . . 2 . 7 . Energy Discharges 24 | . 1 . . 2 . . . . . 1 . . . . 4 1 . 4 . . . . . 2 3 1 . . 1 4 . Parts Rejected 1 | . . . . . . . . . . . . . . . 1 . . . . . . . . . . . . . . . . Data Loss (minor) 21 | . 1 1 . 1 . 1 . . . 1 . . . 1 2 1 . 6 . . . . . 1 1 1 1 1 . 1 . Data Loss (major) 8 | . . . . . . . . . . . . . . . . . . 5 . . . . . . . . . . . 2 1 Misfires 4 | . . . . . . . . . . . . . . . . . . 4 . . . . . . . . . . . . . Targeting Errors 37 | . . . . 1 . 3 . . . . 1 . . . 3 . . 14 . . . . . 1 3 . . 1 . 5 5 Weapon Failures 8 | . . . . . . 1 . . . . . . . . . . . 2 . . . . . . . . . . . 1 4 Overload Shots . | . . . . . . . . . . . . . . . . . . . . . . . . . . . . . . . . Overflow Damage 409 | . . . 22 . . 57 . . . . . . . 77 28 . 13 . 78 . . . . . 23 . . 27 19 20 45 Projectiles 278 | . . . 16 . . 38 . . . . . . . 63 28 . 13 . . . . . . . 23 . . 27 19 6 45 Explosions 103 | . . . . . . 19 . . . . . . . 14 . . . . 70 . . . . . . . . . . . . Melee 28 | . . . 6 . . . . . . . . . . . . . . . 8 . . . . . . . . . . 14 . Knockbacks 15 | . 3 1 9 . . 1 . . . . . . . . . . . . . . . . . . . . . . . 1 . Impact 2 | . . . 1 . . 1 . . . . . . . . . . . . . . . . . . . . . . . . . Kinetic 12 | . 3 1 7 . . . . . . . . . . . . . . . . . . . . . . . . . . 1 . Secondary 1 | . . . 1 . . . . . . . . . . . . . . . . . . . . . . . . . . . . Self-Inflicted Damage 457 | . . . . . . 88 . 86 . 56 . . . . . . . 9 43 . . . . . . . . . 39 131 5 Shots 16 | . . . . . . 3 . 2 . 1 . . . . . . . 1 1 . . . . . . . . . 1 7 . Rammed 53 | . 3 . 4 3 18 8 . . 1 . . . . 3 1 . . . . 1 . . . . . . . . 2 6 3 Targets Rammed 56 | . 3 . 4 4 18 8 . . 2 . . . . 3 1 . . . 1 1 . . . . . . . . 2 6 3 Kicked . | . . . . . . . . . . . . . . . . . . . . . . . . . . . . . . . . Crushed 3 | . . . . 1 . . . . 1 . . . . . . . . . 1 . . . . . . . . . . . . Highest Temperature 499 | . 150 223 438 282 363 361 . 346 192 63 276 . 15 426 477 67 189 320 319 33 3 . . 14 366 . . 116 63 409 499 Average Temperature 108 | . 43 82 104 106 178 101 . 114 64 17 127 . 6 138 180 30 86 115 88 6 2 . . 7 179 . . 49 13 118 93 Received Heat Transfer 5859 | . 345 15 306 486 288 522 . . 108 234 414 . 12 108 103 21 6 291 174 27 . . 18 384 231 39 30 144 255 1010 288 Effects 42 | . . . 10 . 5 4 . 3 . . 4 . . 2 . . . 1 1 . . . . . 4 . . . . 5 3 Shutdowns 5 | . . . 2 . . . . . . . . . . 1 . . . . . . . . . . 1 . . . . 1 . Energy Bleed 7 | . . . . . 3 1 . . . . 1 . . . . . . 1 . . . . . . . . . . . 1 . Interference 20 | . . . 2 . 1 2 . 3 . . 3 . . . . . . . 1 . . . . . 3 . . . . 2 3 Matter Decay 3 | . . . 2 . . . . . . . . . . 1 . . . . . . . . . . . . . . . . . Short Circuit 1 | . . . 1 . . . . . . . . . . . . . . . . . . . . . . . . . . . . Damage (minor) 4 | . . . 1 . 1 1 . . . . . . . . . . . . . . . . . . . . . . . 1 . Damage (major) 2 | . . . 2 . . . . . . . . . . . . . . . . . . . . . . . . . . . . Siege Activations 49 | . . . . . . . . . 2 4 3 . 1 2 3 . . 3 3 3 3 . 4 3 4 . . . . 6 5 Total Turns 1329 | . . . . . . . . . 38 54 78 . 17 44 60 . . 530 31 29 21 . 53 72 86 . . . . 111 105 Longest Duration 366 | . . . . . . . . . 20 25 37 . 17 29 28 . . 366 26 10 8 . 18 27 32 . . . . 41 62 Robots Corrupted 38 | . . . . . . . . 2 . 1 . . 1 2 . 2 . . . . . . . . 5 3 . . 9 9 4 Combat Hostiles 33 | . . . . . . . . . . 1 . . . 2 . 2 . . . . . . . . 4 3 . . 8 9 4 Parts Fried 66 | . . . . . . . . 9 1 2 . . 2 . . 1 . . 1 . . . . . 6 5 . . 14 19 6 Impact Corruptions 2 | . . . 1 . . . . . . . . . . . . . . . 1 . . . . . . . . . . . . Robots Melted 1 | . . . . . . . . . . . . . . 1 . . . . . . . . . . . . . . . . . Combat Hostiles 1 | . . . . . . . . . . . . . . 1 . . . . . . . . . . . . . . . . . Parts Melted 23 | . . . 3 . . . . . . . 4 . . 3 5 . . 3 . . . . . . . . . 4 1 . . Heat Transferred 18501 | . . . 1406 444 925 2738 . 1233 592 337 1628 . . 1196 2300 100 250 1312 200 . . . . . 222 37 667 1445 679 481 309 Parts Sabotaged . | . . . . . . . . . . . . . . . . . . . . . . . . . . . . . . . . Parts Stolen . | . . . . . . . . . . . . . . . . . . . . . . . . . . . . . . . . Parts Stripped . | . . . . . . . . . . . . . . . . . . . . . . . . . . . . . . . . Power Chain Reactions 16 | . . . . . . . . 5 . 3 . . . 2 . 2 . . . . . . . . . . . . 1 2 1 Missiles Intercepted . | . . . . . . . . . . . . . . . . . . . . . . . . . . . . . . . . Alert | -11 -10 -10 -9 -9 -8 -8 -7 -7 -7 -7 -7 -7 -6 -6 -6 -6 -6 -6 -5 -5 -5 -5 -4 -4 -4 -4 -4 -3 -3 -2 -1 ------- Run | Scr Mat Min Mat Min Mat Sto Fac Was Fac Low Low Dat Pro Fac Ext Cet Arc Hub Fac Upp Upp Zhi Pro Fac Upp Upp War Pro Res Res Acc Peak Influence 974 | . 344 135 648 322 242 974 443 169 110 . . . . 203 263 564 315 462 621 . . . . 696 . . . . 373 327 442 Initial 443 | . . 75 52 252 29 42 443 155 . . . . . . 99 147 145 109 226 . . . . 119 . . . . . 154 65 Average 236 | . 185 68 405 94 111 511 443 42 42 . . . . 41 119 342 267 252 467 . . . . 429 . . . . 196 162 185 Maximum Alert Level 3 | . 1 . 2 1 1 3 2 . . . . . . 1 1 2 1 2 2 . . . . 2 . . . . 1 1 2 Low Security (%) 53 | 100 59 100 8 84 82 21 . 100 100 . . . . 92 83 8 23 35 . . . . . 26 . . . . 39 72 64 Level 1 26 | . 40 . 39 15 17 20 . . . . . . . 7 16 57 76 54 32 . . . . 15 . . . . 60 27 27 Level 2 16 | . . . 51 . . 21 100 . . . . . . . . 33 . 10 67 . . . . 58 . . . . . . 7 Level 3 2 | . . . . . . 35 . . . . . . . . . . . . . . . . . . . . . . . . . Level 4 . | . . . . . . . . . . . . . . . . . . . . . . . . . . . . . . . . Level 5 . | . . . . . . . . . . . . . . . . . . . . . . . . . . . . . . . . High Security . | . . . . . . . . . . . . . . . . . . . . . . . . . . . . . . . . Max Security . | . . . . . . . . . . . . . . . . . . . . . . . . . . . . . . . . Squads Dispatched 60 | . 4 . 2 . 2 9 . . 2 . . . . 4 3 . . 7 7 . . . . 5 . . . . 4 2 9 Investigation 10 | . 4 . 2 . 1 1 . . . . . . . . 1 . . . . . . . . . . . . . . . 1 Extermination 11 | . . . . . . . . . 2 . . . . 1 . . . 2 1 . . . . 1 . . . . 2 . 2 Reinforcement 26 | . . . . . 1 3 . . . . . . . 3 2 . . 2 2 . . . . 3 . . . . 2 2 6 Assault 2 | . . . . . . 2 . . . . . . . . . . . . . . . . . . . . . . . . . Garrison 11 | . . . . . . 3 . . . . . . . . . . . 3 4 . . . . 1 . . . . . . . Intercept . | . . . . . . . . . . . . . . . . . . . . . . . . . . . . . . . . Construction Impeded 9 | . . . . . 1 1 . . . . . . . 1 1 . . . 1 . . . . 2 . . . . 1 . 1 Haulers Reinforced 5 | . . . . . . . . . . . . . . 1 . . . 1 . . . . . . . . . . . 1 2 Stealth | -11 -10 -10 -9 -9 -8 -8 -7 -7 -7 -7 -7 -7 -6 -6 -6 -6 -6 -6 -5 -5 -5 -5 -4 -4 -4 -4 -4 -3 -3 -2 -1 --------- Run | Scr Mat Min Mat Min Mat Sto Fac Was Fac Low Low Dat Pro Fac Ext Cet Arc Hub Fac Upp Upp Zhi Pro Fac Upp Upp War Pro Res Res Acc Distress Signals 27 | . 4 . 2 . 1 3 . . . . . . . 2 3 1 . 1 . . . . . 1 . . . . 2 5 2 Communications Jammed . | . . . . . . . . . . . . . . . . . . . . . . . . . . . . . . . . Distress Signals . | . . . . . . . . . . . . . . . . . . . . . . . . . . . . . . . . Times Spotted 566 | . 20 6 55 23 13 60 . 7 8 12 8 . 1 12 19 9 3 29 22 7 8 . 17 23 15 4 26 11 26 78 44 Peak Tracking Total 13 | . 3 3 8 13 3 5 . 4 3 7 5 . 1 6 3 5 1 6 6 3 4 . 4 6 4 3 12 5 7 10 12 Tactical Retreats 32 | . . 1 2 . . 5 . 1 . . . . . 2 . . . . 2 . . . 3 . 2 . 1 . . 11 2 Traps | -11 -10 -10 -9 -9 -8 -8 -7 -7 -7 -7 -7 -7 -6 -6 -6 -6 -6 -6 -5 -5 -5 -5 -4 -4 -4 -4 -4 -3 -3 -2 -1 ------- Run | Scr Mat Min Mat Min Mat Sto Fac Was Fac Low Low Dat Pro Fac Ext Cet Arc Hub Fac Upp Upp Zhi Pro Fac Upp Upp War Pro Res Res Acc Traps Triggered 15 | . 4 . . . 1 2 1 . 1 . . . . 2 2 . . . 1 . . . . . . . . . . . 1 Indirectly . | . . . . . . . . . . . . . . . . . . . . . . . . . . . . . . . . Trap Hack Attempts . | . . . . . . . . . . . . . . . . . . . . . . . . . . . . . . . . Triggered . | . . . . . . . . . . . . . . . . . . . . . . . . . . . . . . . . Disarmed . | . . . . . . . . . . . . . . . . . . . . . . . . . . . . . . . . Reprogrammed . | . . . . . . . . . . . . . . . . . . . . . . . . . . . . . . . . Reused . | . . . . . . . . . . . . . . . . . . . . . . . . . . . . . . . . Traps Extracted . | . . . . . . . . . . . . . . . . . . . . . . . . . . . . . . . . Installed . | . . . . . . . . . . . . . . . . . . . . . . . . . . . . . . . . Triggered 10 | . . . . . . . . . . . 1 . . . . . . . . . . . . . . . 9 . . . . Machines | -11 -10 -10 -9 -9 -8 -8 -7 -7 -7 -7 -7 -7 -6 -6 -6 -6 -6 -6 -5 -5 -5 -5 -4 -4 -4 -4 -4 -3 -3 -2 -1 ---------- Run | Scr Mat Min Mat Min Mat Sto Fac Was Fac Low Low Dat Pro Fac Ext Cet Arc Hub Fac Upp Upp Zhi Pro Fac Upp Upp War Pro Res Res Acc Machines Disabled 44 | . 3 . 3 . 1 10 . . . 1 . . . 1 1 1 1 8 4 . . . . 5 1 . . . 2 2 . Max in Single Turn 6 | . 1 . 1 . 1 1 . . . 1 . . . 1 . . 1 6 1 . . . . 3 1 . . . 1 1 . Garrison Access 3 | . . . . . . 1 . . . . . . . . . . . . . . . . . . . . . . . 2 . Network Hub 2 | . . . . . . . . . . . . . . . . . . 2 . . . . . . . . . . . . . Machines Sabotaged . | . . . . . . . . . . . . . . . . . . . . . . . . . . . . . . . . Garrisons Compromised 1 | . . . . . . . . . 1 . . . . . . . . . . . . . . . . . . . . . . Overloaded Fab Kills . | . . . . . . . . . . . . . . . . . . . . . . . . . . . . . . . . Fab Network Shutdowns . | . . . . . . . . . . . . . . . . . . . . . . . . . . . . . . . . Hacking | -11 -10 -10 -9 -9 -8 -8 -7 -7 -7 -7 -7 -7 -6 -6 -6 -6 -6 -6 -5 -5 -5 -5 -4 -4 -4 -4 -4 -3 -3 -2 -1 --------- Run | Scr Mat Min Mat Min Mat Sto Fac Was Fac Low Low Dat Pro Fac Ext Cet Arc Hub Fac Upp Upp Zhi Pro Fac Upp Upp War Pro Res Res Acc Machines Accessed 40 | . 4 1 3 . 1 7 . . 3 1 . 3 . 1 3 . . 2 . . . 4 . 3 . . 1 . 1 1 1 Terminals 19 | . 3 . 1 . 1 5 . . 1 1 . . . 1 2 . . 2 . . . . . 1 . . . . . . 1 Fabricators 1 | . . . . . . . . . . . . . . . . . . . . . . . . 1 . . . . . . . Repair Stations 2 | . . . . . . . . . . . . . . . 1 . . . . . . . . 1 . . . . . . . Recycling Units 4 | . 1 . 1 . . 1 . . 1 . . . . . . . . . . . . . . . . . . . . . . Scanalyzers 3 | . . . 1 . . . . . 1 . . . . . . . . . . . . . . . . . . . 1 . . Garrison Access 2 | . . . . . . 1 . . . . . . . . . . . . . . . . . . . . . . . 1 . Total Hacks 149 | . 12 1 5 . 3 13 . . 16 4 . 20 . 2 9 . . 6 . . . 16 . 26 . . 5 . 4 4 3 Successful 99 | . 4 1 3 . 1 7 . . 11 4 . 20 . 1 3 . . 4 . . . 16 . 14 . . 5 . 4 1 . Failed 50 | . 8 . 2 . 2 6 . . 5 . . . . 1 6 . . 2 . . . . . 12 . . . . . 3 3 Catastrophic 14 | . 2 . 1 . 1 1 . . 2 . . . . . . . . 1 . . . . . 1 . . . . . 2 3 Database Lockouts . | . . . . . . . . . . . . . . . . . . . . . . . . . . . . . . . . Manual 60 | . 12 . 3 . 3 10 . . 3 . . . . . 7 1 . 5 . . . . . 15 . . 1 . . . . Terminals 65 | . 11 . 2 . 3 10 . . 2 4 . . . 2 7 . . 6 . . . . . 15 . . . . . . 3 Fabricators 6 | . . . . . . . . . . . . . . . . . . . . . . . . 6 . . . . . . . Repair Stations 7 | . . . . . . . . . . . . . . . 2 . . . . . . . . 5 . . . . . . . Recycling Units 4 | . 1 . 1 . . 1 . . 1 . . . . . . . . . . . . . . . . . . . . . . Scanalyzers 19 | . . . 2 . . . . . 13 . . . . . . . . . . . . . . . . . . . 4 . . Garrison Access 6 | . . . . . . 2 . . . . . . . . . . . . . . . . . . . . . . . 4 . Terminal Hacks 63 | . 3 1 . . 1 3 . . . 4 . 20 . 1 1 . . 3 . . . 16 . 5 . . 5 . . . . Record 15 | . . . . . . . . . . 4 . 6 . . . . . . . . . 5 . . . . . . . . . Part Schematic 8 | . . . . . . . . . . . . 5 . . . . . . . . . 3 . . . . . . . . . Robot Schematic 6 | . . . . . . . . . . . . 6 . . . . . . . . . . . . . . . . . . . Robot Analysis 6 | . 2 . . . . . . . . . . . . . . . . . . . . 4 . . . . . . . . . Prototype ID Bank 12 | . . . . . . . . . . . . 3 . . . . . . . . . 4 . . . . 5 . . . . Open Door 2 | . . 1 . . . 1 . . . . . . . . . . . . . . . . . . . . . . . . . Branch Access Points 2 | . . . . . 1 . . . . . . . . . . . . . . . . . . 1 . . . . . . . Terminal Index 4 | . . . . . . 1 . . . . . . . . 1 . . . . . . . . 2 . . . . . . . Fabricator Index 1 | . . . . . . . . . . . . . . . . . . . . . . . . 1 . . . . . . . Scanalyzer Index 1 | . . . . . . . . . . . . . . . . . . . . . . . . 1 . . . . . . . Alert Level 2 | . . . . . . . . . . . . . . 1 . . . 1 . . . . . . . . . . . . . Unreport Threat 3 | . . . . . . 1 . . . . . . . . . . . 2 . . . . . . . . . . . . . Zone Layout 1 | . 1 . . . . . . . . . . . . . . . . . . . . . . . . . . . . . . Fabricator Hacks 4 | . . . . . . . . . . . . . . . . . . . . . . . . 4 . . . . . . . Load Schematic 1 | . . . . . . . . . . . . . . . . . . . . . . . . 1 . . . . . . . Build 3 | . . . . . . . . . . . . . . . . . . . . . . . . 3 . . . . . . . Repair Station Hacks 1 | . . . . . . . . . . . . . . . . . . . . . . . . 1 . . . . . . . Scan Component 1 | . . . . . . . . . . . . . . . . . . . . . . . . 1 . . . . . . . Recycling Unit Hacks . | . . . . . . . . . . . . . . . . . . . . . . . . . . . . . . . . Scanalyzer 16 | . . . 2 . . . . . 10 . . . . . . . . . . . . . . . . . . . 4 . . Insert Component 9 | . . . 1 . . . . . 4 . . . . . . . . . . . . . . . . . . . 4 . . Analyze 7 | . . . 1 . . . . . 6 . . . . . . . . . . . . . . . . . . . . . . Garrison Access Hacks 2 | . . . . . . 1 . . . . . . . . . . . . . . . . . . . . . . . 1 . Seal Access 2 | . . . . . . 1 . . . . . . . . . . . . . . . . . . . . . . . 1 . Unauthorized Hacks 13 | . 1 . 1 . . 3 . . 1 . . . . . 2 . . 1 . . . . . 4 . . . . . . . Terminals 10 | . . . . . . 2 . . 1 . . . . . 2 . . 1 . . . . . 4 . . . . . . . Track 3 | . . . . . . 1 . . . . . . . . 1 . . . . . . . . 1 . . . . . . . Assimilate 1 | . . . . . . . . . . . . . . . . . . . . . . . . 1 . . . . . . . Botnet 5 | . . . . . . 1 . . 1 . . . . . 1 . . 1 . . . . . 1 . . . . . . . Operators 1 | . . . . . . . . . . . . . . . . . . . . . . . . 1 . . . . . . . Fabricators . | . . . . . . . . . . . . . . . . . . . . . . . . . . . . . . . . Repair Stations . | . . . . . . . . . . . . . . . . . . . . . . . . . . . . . . . . Recycling Units 3 | . 1 . 1 . . 1 . . . . . . . . . . . . . . . . . . . . . . . . . Tunnel 3 | . 1 . 1 . . 1 . . . . . . . . . . . . . . . . . . . . . . . . . Scanalyzers . | . . . . . . . . . . . . . . . . . . . . . . . . . . . . . . . . Garrison Access . | . . . . . . . . . . . . . . . . . . . . . . . . . . . . . . . . Data Cores Recovered 2 | . . . 2 . . . . . . . . . . . . . . . . . . . . . . . . . . . . Used 1 | . . . 1 . . . . . . . . . . . . . . . . . . . . . . . . . . . . Hacking Detections 25 | . 3 . 2 . 1 4 . . 3 1 . . . . 3 . . 2 . . . . . 3 . . . . 1 1 1 Full Trace Events 3 | . 1 . 1 . . . . . . . . . . . . . . . . . . . . . . . . . . . 1 Feedback Events 1 | . . . . . . . . . . . . . . . . . . . . . . . . . . . . . . . 1 Hackware Fried 1 | . . . . . . . . . . . . . . . . . . . . . . . . . . . . . . . 1 Feedback Blocked . | . . . . . . . . . . . . . . . . . . . . . . . . . . . . . . . . Robot Schematics Acquired 6 | . . . . . . . . . . . . 6 . . . . . . . . . . . . . . . . . . . Robots Built . | . . . . . . . . . . . . . . . . . . . . . . . . . . . . . . . . Matter . | . . . . . . . . . . . . . . . . . . . . . . . . . . . . . . . . Time . | . . . . . . . . . . . . . . . . . . . . . . . . . . . . . . . . Total Robot Build Rating . | . . . . . . . . . . . . . . . . . . . . . . . . . . . . . . . . Part Schematics Acquired 12 | . . . 1 . . . . . 3 . . 5 . . . . . . . . . 3 . . . . . . . . . Parts Built 3 | . . . . . . . . . . . . . . . . . . . . . . . . 3 . . . . . . . Matter 306 | . . . . . . . . . . . . . . . . . . . . . . . . 306 . . . . . . . Time 75 | . . . . . . . . . . . . . . . . . . . . . . . . 75 . . . . . . . Total Part Build Rating 3 | . . . . . . . . . . . . . . . . . . . . . . . . 3 . . . . . . . Parts Repaired . | . . . . . . . . . . . . . . . . . . . . . . . . . . . . . . . . Time . | . . . . . . . . . . . . . . . . . . . . . . . . . . . . . . . . Parts Recycled . | . . . . . . . . . . . . . . . . . . . . . . . . . . . . . . . . Recycled Matter . | . . . . . . . . . . . . . . . . . . . . . . . . . . . . . . . . Retrieved Matter . | . . . . . . . . . . . . . . . . . . . . . . . . . . . . . . . . Retrieved Components . | . . . . . . . . . . . . . . . . . . . . . . . . . . . . . . . . Parts Scanalyzed 4 | . . . 1 . . . . . 3 . . . . . . . . . . . . . . . . . . . . . . Part Schematics Acquired 4 | . . . 1 . . . . . 3 . . . . . . . . . . . . . . . . . . . . . . Parts Damaged 2 | . . . . . . . . . 2 . . . . . . . . . . . . . . . . . . . . . . Bothacking | -11 -10 -10 -9 -9 -8 -8 -7 -7 -7 -7 -7 -7 -6 -6 -6 -6 -6 -6 -5 -5 -5 -5 -4 -4 -4 -4 -4 -3 -3 -2 -1 ------------ Run | Scr Mat Min Mat Min Mat Sto Fac Was Fac Low Low Dat Pro Fac Ext Cet Arc Hub Fac Upp Upp Zhi Pro Fac Upp Upp War Pro Res Res Acc Used RIF Installer . | . . . . . . . . . . . . . . . . . . . . . . . . . . . . . . . . Robots Hacked . | . . . . . . . . . . . . . . . . . . . . . . . . . . . . . . . . Non-combat . | . . . . . . . . . . . . . . . . . . . . . . . . . . . . . . . . Combat . | . . . . . . . . . . . . . . . . . . . . . . . . . . . . . . . . Robot Hacks Applied . | . . . . . . . . . . . . . . . . . . . . . . . . . . . . . . . . Relay Couplers Released 9 | . . . . . . . . . . . . . . . . . . . 4 . . . . . . . . . . 5 . Machine Destruction 1 | . . . . . . . . . . . . . . . . . . . . . . . . . . . . . . 1 . Programmers 8 | . . . . . . . . . . . . . . . . . . . 4 . . . . . . . . . . 4 . Robots Rewired 4 | . . . . . . . . 1 . . . . . . 3 . . . . . . . . . . . . . . . . Allies Hacked . | . . . . . . . . . . . . . . . . . . . . . . . . . . . . . . . . Hacks Repelled . | . . . . . . . . . . . . . . . . . . . . . . . . . . . . . . . . Allies | -11 -10 -10 -9 -9 -8 -8 -7 -7 -7 -7 -7 -7 -6 -6 -6 -6 -6 -6 -5 -5 -5 -5 -4 -4 -4 -4 -4 -3 -3 -2 -1 -------- Run | Scr Mat Min Mat Min Mat Sto Fac Was Fac Low Low Dat Pro Fac Ext Cet Arc Hub Fac Upp Upp Zhi Pro Fac Upp Upp War Pro Res Res Acc Total Allies 34 | . . . . 3 . 1 . 19 . . . . 1 . 6 4 . . . . . . . . . . . . . . . Largest Group 18 | . . . . 3 2 1 . 18 . . . . 1 . 6 6 5 4 . . . . . . . . . . . . . Highest-Rated Group 557 | . . . . 40 18 99 . 456 . . . . 94 . 283 557 402 371 . . . . . . . . . . . . . Highest-Rated Ally 156 | . . . . 16 11 99 . 129 . . . . 94 . 156 150 94 94 . . . . . . . . . . . . . Total Orders 3 | . . . . . . . . 1 . . . . . . 2 . . . . . . . . . . . . . . . . STAY 2 | . . . . . . . . 1 . . . . . . 1 . . . . . . . . . . . . . . . . ROAM 1 | . . . . . . . . . . . . . . . 1 . . . . . . . . . . . . . . . . Ally Attacks 417 | . . . . 34 . 14 . 154 . . . . 1 . 130 32 24 28 . . . . . . . . . . . . . Total Damage 8856 | . . . . 289 . 368 . 3226 . . . . 46 . 2415 585 908 1019 . . . . . . . . . . . . . Kills 52 | . . . . 8 . 5 . 9 . . . . 1 . 9 6 3 11 . . . . . . . . . . . . . Allies Corrupted 8 | . . . . 4 . . . 2 . . . . 1 . . . . 1 . . . . . . . . . . . . . Allies Melted . | . . . . . . . . . . . . . . . . . . . . . . . . . . . . . . . . Intel | -11 -10 -10 -9 -9 -8 -8 -7 -7 -7 -7 -7 -7 -6 -6 -6 -6 -6 -6 -5 -5 -5 -5 -4 -4 -4 -4 -4 -3 -3 -2 -1 ------- Run | Scr Mat Min Mat Min Mat Sto Fac Was Fac Low Low Dat Pro Fac Ext Cet Arc Hub Fac Upp Upp Zhi Pro Fac Upp Upp War Pro Res Res Acc Robot Analysis Total 6 | . 2 . . . . . . . . . . . . . . . . . . . . 4 . . . . . . . . . Derelict Logs Recovered 11 | . . 1 . 1 . . . . . 2 3 . 1 . . . . . . . 1 . . . 1 1 . . . . . Drone Launches 49 | . . . . 49 . . . . . . . . . . . . . . . . . . . . . . . . . . . Drone Recoveries 30 | . . . . 30 . . . . . . . . . . . . . . . . . . . . . . . . . . . Exploration | -11 -10 -10 -9 -9 -8 -8 -7 -7 -7 -7 -7 -7 -6 -6 -6 -6 -6 -6 -5 -5 -5 -5 -4 -4 -4 -4 -4 -3 -3 -2 -1 ------------- Run | Scr Mat Min Mat Min Mat Sto Fac Was Fac Low Low Dat Pro Fac Ext Cet Arc Hub Fac Upp Upp Zhi Pro Fac Upp Upp War Pro Res Res Acc Turns Passed 25454 | 3 1025 749 2299 582 519 1505 74 1347 544 824 768 127 607 695 1116 445 101 1402 864 676 666 288 698 672 818 290 1052 576 577 2589 956 Spaces Moved 11756 | 3 453 497 1029 277 198 548 37 746 234 441 402 80 349 341 524 104 50 398 379 342 322 152 336 229 337 134 530 210 188 1453 433 Core 310 | . . . . . . . . . . . . . . . . . . . . . . . . . . . . . 1 204 105 Treads 9151 | . 404 83 758 277 198 548 37 357 234 441 402 80 349 341 524 104 50 398 379 342 322 152 336 229 337 134 530 210 37 233 325 Legs 49 | 3 38 . . . . . . . . . . . . . . . . . . . . . . . . . . . 8 . . Wheels 1849 | . 11 414 271 . . . . . . . . . . . . . . . . . . . . . . . . . 134 1016 3 Hover 397 | . . . . . . . . 389 . . . . . . . . . . . . . . . . . . . . 8 . . Flight . | . . . . . . . . . . . . . . . . . . . . . . . . . . . . . . . . Fastest Speed 45 | 120 110 130 130 190 190 180 180 45 160 160 160 160 160 160 180 180 160 160 160 180 180 180 180 180 186 185 185 187 130 50 50 Average Speed 166 | 120 168 138 175 190 190 181 180 109 170 160 160 160 160 163 180 180 166 173 179 180 180 180 180 185 194 189 185 237 202 140 136 Slowest Speed 2350 | 120 210 180 220 190 190 220 180 200 180 160 160 160 160 180 180 180 180 180 180 180 180 180 180 200 200 220 187 290 2350 205 240 Overloaded Moves . | . . . . . . . . . . . . . . . . . . . . . . . . . . . . . . . . Propulsion Burnouts . | . . . . . . . . . . . . . . . . . . . . . . . . . . . . . . . . Robots Hopped . | . . . . . . . . . . . . . . . . . . . . . . . . . . . . . . . . Cave-ins Triggered 1 | . . . . . . . . . . . . . . . . . . . 1 . . . . . . . . . . . . Teleports 1 | . . . . . . . . . . . . . . . . . . . . . . . . . . . . . . 1 . Exploration Rate (%) 47 | 2 78 93 88 56 19 87 2 97 8 58 52 70 65 15 65 48 67 41 18 60 47 61 55 9 55 28 83 43 9 43 12 Regions Visited 31 Branch Regions 19 Pre-discovered Areas 9 | . 1 . 1 1 . 1 . . . 1 . 1 . . . . . . . . . 3 . . . . . . . . . Known Exits Taken 6 | . . . . . 1 . . . . 1 . . . . . . . 1 1 . . . . 1 . . . . . 1 . Unknown Exits Taken 23 | 1 1 1 1 1 . 1 . . 1 . 1 1 1 1 1 1 1 . . 1 1 1 1 . 1 1 1 1 1 . . Scrap Searched 16 | . . 2 . 1 . . . . . 2 3 . 2 . . . . . . . 2 . 1 . 1 1 . 1 . . . Spaces Dug 29 | . . . . . . . . . . . . . . . . 6 . . 15 . . . . 3 . . . . . 4 1 Terrain Destroyed 711 | . 4 2 10 . . 102 . 17 1 15 5 . . 20 17 6 . 214 59 18 7 . 27 57 10 1 . 11 8 91 9 Melee . | . . . . . . . . . . . . . . . . . . . . . . . . . . . . . . . . Projectile 346 | . 4 2 10 . . 8 . 1 1 . 5 . . 9 17 . . 54 45 18 7 . 27 36 10 1 . 11 5 69 6 AOE 365 | . . . . . . 94 . 16 . 15 . . . 11 . 6 . 160 14 . . . . 21 . . . . 3 22 3 Terrain Rammed . | . . . . . . . . . . . . . . . . . . . . . . . . . . . . . . . . Walls Destroyed . | . . . . . . . . . . . . . . . . . . . . . . . . . . . . . . . . Machines Disabled . | . . . . . . . . . . . . . . . . . . . . . . . . . . . . . . . . Actions | -11 -10 -10 -9 -9 -8 -8 -7 -7 -7 -7 -7 -7 -6 -6 -6 -6 -6 -6 -5 -5 -5 -5 -4 -4 -4 -4 -4 -3 -3 -2 -1 --------- Run | Scr Mat Min Mat Min Mat Sto Fac Was Fac Low Low Dat Pro Fac Ext Cet Arc Hub Fac Upp Upp Zhi Pro Fac Upp Upp War Pro Res Res Acc Total 15353 | 2 571 524 1269 311 274 803 48 1158 335 518 474 79 391 434 646 355 60 926 456 372 390 161 390 358 422 159 577 242 281 1750 617 Wait 1513 | . 10 4 18 7 9 38 2 239 78 34 21 . 25 48 55 224 2 421 15 15 58 . 33 61 24 . 6 . 3 31 32 Move 11726 | 2 452 496 1028 276 197 547 37 745 233 440 401 79 348 340 523 103 49 397 378 341 321 151 335 228 336 133 529 209 187 1452 433 Hop . | . . . . . . . . . . . . . . . . . . . . . . . . . . . . . . . . Pick Up 187 | . 5 4 35 . 5 15 . 11 . 10 5 . 1 3 3 7 . 9 2 . 1 2 1 3 12 7 7 2 5 10 22 Fast Attach 158 | . 4 . 10 2 6 12 . 6 2 2 4 . 2 5 3 2 2 2 3 . . 3 1 2 2 3 6 . 12 45 17 Attach 140 | . 5 . 3 4 4 3 5 10 . 7 6 . . 1 3 3 . 4 2 3 . . . 5 5 3 3 6 7 23 25 Detach 23 | . . . . . . . 4 3 . . 2 . . 1 . 1 . . . . . . . 1 1 . 1 . 4 3 2 Swap 77 | . 3 4 9 4 . 16 . 3 . . . . 5 4 1 3 2 3 . . 3 1 1 3 1 3 1 . 2 4 1 Drop 216 | . 8 . 31 4 4 22 . 15 . 5 7 . 5 6 4 8 2 12 2 . . 2 3 2 . 2 13 3 5 43 8 Fire 1192 | . 81 16 131 10 31 142 . 120 20 20 28 . 5 23 21 4 3 78 53 12 7 2 16 53 41 8 11 22 54 106 74 Melee 27 | . . . . . . . . . . . . . . . . . . . . . . . . . . . . . . 27 . Ram 1 | . . . . . . . . . . . . . . . . . . . . . . . . . . . . . . . 1 Kick . | . . . . . . . . . . . . . . . . . . . . . . . . . . . . . . . . Crush 55 | . 3 . 4 4 18 8 . . 2 . . . . 3 1 . . . 1 1 . . . . . . . . 2 6 2 Escape Stasis 4 | . . . . . . . . . . . . . . . 4 . . . . . . . . . . . . . . . . Rewire 34 | . . . . . . . . 6 . . . . . . 28 . . . . . . . . . . . . . . . . Trap . | . . . . . . . . . . . . . . . . . . . . . . . . . . . . . . . . Miscellaneous . | . . . . . . . . . . . . . . . . . . . . . . . . . . . . . . . . Route ------- -11/Scrapyard -10/Materials (discovered 4 exits: *Mat x3 / *Min) -10/Mines -9/Materials (discovered 5 exits: *Mat x3 / [*Min x2]) -9/Mines (discovered 2 exits: *Mat / [*Exi]) -8/Materials (discovered 2 exits: *Sto x2) -8/Storage (discovered 2 exits: [*Fac] / Rec) -7/Factory -7/Waste -7/Factory -7/Lower Caves -7/Lower Caves (discovered 2 exits: *Fac / *Dat) -7/Data Miner -6/Proximity Caves -6/Factory (discovered 4 exits: Fac x2 / Low / *Ext) -6/Extension (discovered 2 exits: *Fac / *Cet) -6/Cetus -6/Archives (discovered 2 exits: *Hub x2) -6/Hub_04(d) (discovered 2 exits: *Fac x2) -5/Factory -5/Upper Caves -5/Upper Caves -5/Zhirov -4/Proximity Caves -4/Factory (discovered 3 exits: *Upp x2 / Arm) -4/Upper Caves -4/Upper Caves -4/Warlord -3/Proximity Caves -3/Research (discovered 3 exits: *Res x2 / [*Tes]) -2/Research (discovered 2 exits: *Acc x2) -1/Access History --------- Turn | Location | Event 1 | -11/Scrapyard | Discovered new exit (range 3) 4 | -11/Scrapyard | Entered Materials 111 | -10/Materials | Discovered new exit (range 16) 314 | -10/Materials | Build established: Mutant 597 | -10/Materials | Discovered new exit (range 16) 679 | -10/Materials | Core integrity fell below 50% 856 | -10/Materials | Discovered new exit (range 6) 1006 | -10/Materials | Discovered new exit (range 7) 1029 | -10/Materials | Entered Mines 1363 | -10/Mines | Found the Drone Emporium 1369 | -10/Mines | Found Prototype Device 1444 | -10/Mines | Found a damaged Exp. Sensor Array with a note attached 1446 | -10/Mines | Found Prototype Device 1447 | -10/Mines | Identified Exp. Sensor Array 1449 | -10/Mines | Identified Sensor Drone Bay 1527 | -10/Mines | Discovered new exit (range 15) 1778 | -10/Mines | Entered Materials 1778 | -9/Materials | Evolved 2 slots: Utility x1, Weapon x1 2297 | -9/Materials | Build established: Tank 2729 | -9/Materials | Discovered new exit (range 10) 2970 | -9/Materials | Discovered new exit (range 8) 3188 | -9/Materials | Discovered new exit (range 15) 3580 | -9/Materials | Discovered new exit (range 16) 3838 | -9/Materials | Discovered new exit (range 16) 4077 | -9/Materials | Entered Mines 4090 | -9/Mines | Assembled infested the area 4100 | -9/Mines | Learned location of Zion (-6) 4147 | -9/Mines | Core integrity fell below 50% 4173 | -9/Mines | Core integrity fell below 20% 4181 | -9/Mines | Lost 3 parts (3w) 4249 | -9/Mines | Assisted by bots powering up and referring to "LRC-V3" 4419 | -9/Mines | Build established: Mutant 4495 | -9/Mines | Discovered new exit (range 5) 4641 | -9/Mines | Discovered new exit (range 9) 4659 | -9/Mines | Entered Materials 4659 | -8/Materials | Accompanied by 2 allies 4659 | -8/Materials | Evolved 2 slots: Utility x2 4923 | -8/Materials | Identified exit to Storage 5178 | -8/Materials | Entered Storage 5179 | -8/Storage | Identified exit to Recycling 5286 | -8/Storage | Garrison activated, responded to threat 5706 | -8/Storage | Build established: Scavenger-Tank 5903 | -8/Storage | Discovered new exit (range 13) 5913 | -8/Storage | Met 01-MTF 5978 | -8/Storage | First assault squad dispatched 5983 | -8/Storage | Found Prototype Launcher 6167 | -8/Storage | Destroyed 01-MTF 6171 | -8/Storage | Found Prototype Device 6228 | -8/Storage | Found 01-MTF's Shockpuncher 6486 | -8/Storage | Destroyed 7 combat bots 6683 | -8/Storage | Entered Factory 6683 | -7/Factory | Evolved 2 slots: Propulsion x1, Utility x1 6686 | -7/Factory | Identified 01-MTF's Autohacker 6730 | -7/Factory | Build established: Scavenger-Mutant 6757 | -7/Factory | Sucked down chute 6757 | -7/Factory | Entered Waste 6853 | -7/Waste | Spotted C-40 Crusher 6872 | -7/Waste | Spotted C-40 Crusher 6909 | -7/Waste | Spotted C-40 Crusher 6919 | -7/Waste | Crushed by Compactor (1 part destroyed, 2 dropped) 6922 | -7/Waste | Crushed by Compactor (1 part destroyed, 1 dropped) 6928 | -7/Waste | Crushed by Compactor (1 part destroyed, 2 dropped) 6948 | -7/Waste | Spotted C-40 Crusher 6949 | -7/Waste | Spotted C-40 Crusher 6953 | -7/Waste | Discovered new exit (range 16) 6954 | -7/Waste | Spotted C-40 Crusher 6959 | -7/Waste | Lost 3 parts (1n2w) 6971 | -7/Waste | Warlord forces began an assault 6973 | -7/Waste | Allies destroyed C-40 Crusher 6982 | -7/Waste | Allies destroyed C-40 Crusher 6997 | -7/Waste | Allies destroyed C-40 Crusher 7008 | -7/Waste | Allies destroyed C-40 Crusher 7018 | -7/Waste | Allies destroyed C-40 Crusher 7053 | -7/Waste | Rewired C-40 Crusher 7599 | -7/Waste | Destroyed Crusher 4a 7625 | -7/Waste | Found Damper Plating 7634 | -7/Waste | Found Damper Plating 8104 | -7/Waste | Entered Factory 8124 | -7/Factory | Build established: Scavenger-Tank 8520 | -7/Factory | Discovered new exit (range 8) 8648 | -7/Factory | Entered Lower Caves 8847 | -7/Lower Caves | Learned Factory garrison access intel 9149 | -7/Lower Caves | Learned location of 1 exit from Factory 9266 | -7/Lower Caves | Attracted the attention of an 0b10 base 9342 | -7/Lower Caves | Destroyed 7 combat bots 9350 | -7/Lower Caves | Lost 7 parts (1n2u4w) 9396 | -7/Lower Caves | Identified exit to Lower Caves 9396 | -7/Lower Caves | Learned Research stockpile data 9472 | -7/Lower Caves | Entered another Lower Caves area 9663 | -7/Lower Caves | Discovered new exit (range 8) 9674 | -7/Lower Caves | Learned location of 1 exit from Factory 9730 | -7/Lower Caves | Learned Factory terminal intel 10110 | -7/Lower Caves | Discovered new exit (range 15) 10240 | -7/Lower Caves | Entered Data Miner 10240 | -7/Data Miner | Discovered new exit (range 6) 10271 | -7/Data Miner | Met Data Miner 10298 | -7/Data Miner | Learned location of Section 7 (-2) 10298 | -7/Data Miner | Acquired the access code to Warlord's prototype stash 10324 | -7/Data Miner | Received God Mode back door access code from Data Miner 10367 | -7/Data Miner | Entered Proximity Caves 10660 | -6/Proximity Caves | Escorted by Enhanced Grunt 10669 | -6/Proximity Caves | Attracted the attention of an 0b10 checkpoint 10704 | -6/Proximity Caves | Discovered new exit (range 11) 10779 | -6/Proximity Caves | Learned 8 Factory zone layouts 10974 | -6/Proximity Caves | Entered Factory 10974 | -6/Factory | Evolved 2 slots: Utility x1, Weapon x1 10975 | -6/Factory | Identified exit to Lower Caves 10976 | -6/Factory | Identified exit to Factory 10978 | -6/Factory | Loaded intel: 22 terminal locations 10979 | -6/Factory | Loaded intel: 4 garrison access locations 11009 | -6/Factory | Build established: Scavenger-Mutant 11462 | -6/Factory | Build established: Scavenger-Tank 11642 | -6/Factory | Discovered new exit (range 16) 11669 | -6/Factory | Entered Extension 11839 | -6/Extension | Rescued A7 12087 | -6/Extension | Rescued a captive Derelict 12088 | -6/Extension | Rescued a captive Derelict 12304 | -6/Extension | Build established: Scavenger-Gunner 12475 | -6/Extension | Spotted B-75 Beast 12519 | -6/Extension | Spotted B-75 Beast 12542 | -6/Extension | Allies destroyed B-75 Beast 12756 | -6/Extension | Discovered new exit (range 16) 12757 | -6/Extension | Discovered exit to Factory (range 15) 12785 | -6/Extension | Entered Cetus 12785 | -6/Cetus | Accompanied by 3 allies (A7) 12790 | -6/Cetus | Acquired a Cetus Manufacturing Module code from A7 12813 | -6/Cetus | Spotted Cetus Guard 12813 | -6/Cetus | Spotted Cetus Guard 12816 | -6/Cetus | Spotted Cetus Guard 12819 | -6/Cetus | Spotted Cetus Guard 12821 | -6/Cetus | Allies destroyed Cetus Guard 12824 | -6/Cetus | Destroyed Cetus Guard 12824 | -6/Cetus | Destroyed Cetus Guard 12829 | -6/Cetus | Allies destroyed Cetus Guard 12932 | -6/Cetus | Started Cetus Manufacturing Module 12954 | -6/Cetus | Discovered new exit (range 15) 12957 | -6/Cetus | Manufactured an Enhanced Grunt 12982 | -6/Cetus | Manufactured an Enhanced Grunt 13007 | -6/Cetus | Manufactured an Enhanced Grunt 13032 | -6/Cetus | Manufactured an Enhanced Grunt 13051 | -6/Cetus | Cetus Manufacturing Module disabled 13091 | -6/Cetus | Build established: Scavenger-Mutant 13230 | -6/Cetus | Entered Archives 13230 | -6/Archives | Accompanied by 6 allies (A7) 13280 | -6/Archives | Discovered new exit (range 16) 13299 | -6/Archives | Discovered new exit (range 16) 13331 | -6/Archives | Entered Hub_04(d) 13331 | -6/Hub_04(d) | Accompanied by 4 allies 13383 | -6/Hub_04(d) | Found Prototype Processor 13383 | -6/Hub_04(d) | Identified Exp. Signal Interpreter 13389 | -6/Hub_04(d) | Found Exp. Signal Interpreter 13400 | -6/Hub_04(d) | Discovered exit to Factory (range 15) 13539 | -6/Hub_04(d) | Discovered exit to Factory (range 8) 13548 | -6/Hub_04(d) | Network Hub disabled 13580 | -6/Hub_04(d) | Spotted Lightning 13581 | -6/Hub_04(d) | Garrison activated, responded to threat 13583 | -6/Hub_04(d) | Spotted Lightning 13585 | -6/Hub_04(d) | Spotted Lightning 13621 | -6/Hub_04(d) | Destroyed Lightning 13652 | -6/Hub_04(d) | Destroyed Lightning 13682 | -6/Hub_04(d) | Build established: Scavenger-Tank 13700 | -6/Hub_04(d) | Destroyed Lightning 13711 | -6/Hub_04(d) | Found Exp. Targeting Computer 14462 | -6/Hub_04(d) | Spotted Lightning 14462 | -6/Hub_04(d) | Spotted Lightning 14462 | -6/Hub_04(d) | Spotted Lightning 14489 | -6/Hub_04(d) | Destroyed Lightning 14505 | -6/Hub_04(d) | Destroyed Lightning 14571 | -6/Hub_04(d) | Destroyed Lightning 14589 | -6/Hub_04(d) | Found Prototype Energy Cannon 14597 | -6/Hub_04(d) | Found Prototype Energy Cannon 14621 | -6/Hub_04(d) | Found Prototype Device 14622 | -6/Hub_04(d) | Identified EM Dispersion Field 14633 | -6/Hub_04(d) | Found Prototype Energy Cannon 14643 | -6/Hub_04(d) | Network Hub disabled 14733 | -6/Hub_04(d) | Entered Factory 14733 | -5/Factory | Evolved 2 slots: Power x1, Utility x1 14734 | -5/Factory | Identified exit to Upper Caves 14946 | -5/Factory | Garrison activated, responded to threat 15094 | -5/Factory | Build established: Scavenger-Gunner 15235 | -5/Factory | Garrison activated, responded to threat 15568 | -5/Factory | Crushed by falling debris 15597 | -5/Factory | Entered Upper Caves 15897 | -5/Upper Caves | Build established: Scavenger-Tank 16038 | -5/Upper Caves | Attracted the attention of an 0b10 checkpoint 16266 | -5/Upper Caves | Discovered new exit (range 4) 16273 | -5/Upper Caves | Entered another Upper Caves area 16599 | -5/Upper Caves | Encountered a Warlord checkpoint 16901 | -5/Upper Caves | Learned Factory trap positions 16928 | -5/Upper Caves | Discovered new exit (range 3) 16939 | -5/Upper Caves | Entered Zhirov 16939 | -5/Zhirov | Discovered new exit (range 3) 16972 | -5/Zhirov | Met Zhirov 17011 | -5/Zhirov | Learned location of Quarantine (-2) 17011 | -5/Zhirov | Learned location of Command (-1) 17035 | -5/Zhirov | Zhirov requested help retrieving the SGEMP Prototype 17062 | -5/Zhirov | Found Alien Artifact 17062 | -5/Zhirov | Identified Integrated Dissipator 17062 | -5/Zhirov | Installed Integrated Dissipator, increased core heat dissipation (+20) 17151 | -5/Zhirov | Found Alien Artifact 17227 | -5/Zhirov | Entered Proximity Caves 17857 | -4/Proximity Caves | Attracted the attention of an 0b10 checkpoint 17909 | -4/Proximity Caves | Discovered new exit (range 5) 17925 | -4/Proximity Caves | Entered Factory 17925 | -4/Factory | Evolved 2 slots: Propulsion x1, Utility x1 17926 | -4/Factory | Loaded intel: 86 trap records 18046 | -4/Factory | Identified exit to Upper Caves 18046 | -4/Factory | Identified exit to Armory 18070 | -4/Factory | Spotted B-86 Titan 18174 | -4/Factory | Destroyed 9 combat bots 18238 | -4/Factory | Fabricated Hcp. Storage Unit (x1) 18264 | -4/Factory | Fabricated Hcp. Storage Unit (x1) 18289 | -4/Factory | Fabricated Hcp. Storage Unit (x1) 18383 | -4/Factory | Garrison activated, responded to threat 18453 | -4/Factory | Lost 4 parts (2n1u1w) 18597 | -4/Factory | Entered Upper Caves 18723 | -4/Upper Caves | Attracted the attention of an 0b10 checkpoint 18811 | -4/Upper Caves | Build established: Scavenger-Gunner 18886 | -4/Upper Caves | Identified EMDS (x3) 19068 | -4/Upper Caves | Attacked by a delusional Derelict stockpiling parts 19279 | -4/Upper Caves | Encountered a Warlord checkpoint 19325 | -4/Upper Caves | Build established: Scavenger-Mutant 19370 | -4/Upper Caves | Learned Research security intel 19378 | -4/Upper Caves | Discovered new exit (range 11) 19415 | -4/Upper Caves | Entered another Upper Caves area 19549 | -4/Upper Caves | Learned Research security intel 19599 | -4/Upper Caves | Attracted the attention of an 0b10 checkpoint 19685 | -4/Upper Caves | Discovered new exit (range 9) 19705 | -4/Upper Caves | Entered Warlord 19768 | -4/Warlord | System corruption cleaned by Quarantine Array 19777 | -4/Warlord | Build established: Scavenger-Gunner 20211 | -4/Warlord | Met Warlord 20235 | -4/Warlord | Opened Warlord's prototype stash 20236 | -4/Warlord | Warlord's base attacked by MAIN.C 20243 | -4/Warlord | Found Prototype Reactor 20248 | -4/Warlord | Found Prototype Device 20248 | -4/Warlord | Identified Exp. Cloaking Device 20257 | -4/Warlord | Found Prototype Device 20257 | -4/Warlord | Identified Thermal Barrier 20267 | -4/Warlord | Found Prototype Hackware 20271 | -4/Warlord | Found Prototype Processor 20586 | -4/Warlord | Warlord forces counterattacked 20601 | -4/Warlord | Spotted Executioner 20602 | -4/Warlord | Spotted B-90 Cyclops 20610 | -4/Warlord | Spotted B-86 Titan 20613 | -4/Warlord | Destroyed B-90 Cyclops 20643 | -4/Warlord | Found Prototype Processor 20643 | -4/Warlord | Identified Exp. Core Analyzer (x2) 20656 | -4/Warlord | Found Exp. Targeting Computer 20688 | -4/Warlord | Spotted Striker 20704 | -4/Warlord | Spotted Striker 20718 | -4/Warlord | Discovered new exit (range 14) 20734 | -4/Warlord | Destroyed Striker 20757 | -4/Warlord | Entered Proximity Caves 20959 | -3/Proximity Caves | Lost 3 parts (1n2w) 21124 | -3/Proximity Caves | Lost 3 parts (1n2w) 21316 | -3/Proximity Caves | Discovered new exit (range 6) 21333 | -3/Proximity Caves | Entered Research 21333 | -3/Research | Evolved 2 slots: Utility x2 21377 | -3/Research | Identified Transdimensional Reconstructor 21377 | -3/Research | Identified Ghost Barrier 21377 | -3/Research | Identified Vortex Chain Reactor 21459 | -3/Research | Lost 4 parts (1p1n1u1w) 21730 | -3/Research | Discovered new exit (range 13) 21785 | -3/Research | Found Gamma Bomb Array 21796 | -3/Research | Discovered new exit (range 3) 21829 | -3/Research | Discovered new exit (range 8) 21910 | -3/Research | Entered another Research area 21910 | -2/Research | Warlord forces began assault on 0b10 21910 | -2/Research | Evolved 2 slots: Utility x2 21936 | -2/Research | Lost 3 parts (2u1w) 21976 | -2/Research | Met up with Warlord 22020 | -2/Research | Research machine network offline 22427 | -2/Research | Borebot progress halted 22595 | -2/Research | Found Hvy. Reactive Plating 22599 | -2/Research | Found Hvy. Reactive Plating 22620 | -2/Research | Spotted Striker 22621 | -2/Research | Spotted Striker 22621 | -2/Research | Spotted Striker 22631 | -2/Research | Destroyed Striker 22631 | -2/Research | Attacked by Warlord forces 22633 | -2/Research | Destroyed Striker 22637 | -2/Research | Destroyed Striker 22657 | -2/Research | Spotted Executioner 22755 | -2/Research | Borebot progress halted 22837 | -2/Research | Spotted 18-I9N(H) 22842 | -2/Research | Spotted SY-T6H(B) 22890 | -2/Research | Build established: Hauler-Mutant 22936 | -2/Research | Spotted Striker 23220 | -2/Research | Spotted Striker 23223 | -2/Research | Spotted Striker 23226 | -2/Research | Borebot progress halted 23254 | -2/Research | Destroyed Striker 23261 | -2/Research | Destroyed Striker 23292 | -2/Research | Lost 4 parts (2u2w) 23341 | -2/Research | Discovered new exit (range 14) 23365 | -2/Research | Identified exit to Access 23435 | -2/Research | Found Prototype Device 23435 | -2/Research | Identified Adv. Kinecellerator 23688 | -2/Research | Spotted SW-AQU(D) 23721 | -2/Research | Destroyed SW-AQU(D) 23743 | -2/Research | Lost 6 parts (1n2u3w) 24029 | -2/Research | Spotted Striker 24041 | -2/Research | Destroyed Striker 24052 | -2/Research | Build established: Scavenger-Gunner 24054 | -2/Research | Spotted Striker 24064 | -2/Research | Warped through subspace 24077 | -2/Research | Spotted WB-PN9(D) 24161 | -2/Research | Lost 14 parts (1p2n7u4w) 24164 | -2/Research | Destroyed WB-PN9(D) 24173 | -2/Research | Spotted JS-X9K(H) 24257 | -2/Research | Lost 3 parts (2u1w) 24292 | -2/Research | Core integrity fell below 50% 24306 | -2/Research | Destroyed JS-X9K(H) 24308 | -2/Research | Attacked by Warlord 24341 | -2/Research | Spotted V3-P9D(H) 24343 | -2/Research | Core integrity fell below 20% 24354 | -2/Research | Lost 8 parts (1p3n2u2w) 24409 | -2/Research | Warlord destroyed during the assault 24436 | -2/Research | Discovered exit to Access (range 15) 24499 | -2/Research | Entered Access 24499 | -1/Access | Evolved 2 slots: Power x1, Weapon x1 25103 | -1/Access | Adv. System Shield fried by hacking feedback 25254 | -1/Access | Lost 6 parts (2p3u1w) 25340 | -1/Access | Lost 8 parts (1p2n1u4w) 25389 | -1/Access | Core integrity fell below 50% 25396 | -1/Access | System corruption reached 10% 25403 | -1/Access | Core integrity fell below 20% 25426 | -1/Access | Lost 21 parts (2p6n3u10w) 25455 | -1/Access | Destroyed by P-80 Master with Gamma Rifle Last Messages --------------- 25439_ System corrupted: Substantial component data lost. 25442_ Slug penetrates Wall. 25442_ Penetrated by Slug. 25442_ K-01 Serf collects debris. 25443_ Slug penetrates Wall. 25443_ Penetrated by Slug. 25445_ Slug penetrates Wall. 25446_ K-01 Serf collects debris. 25447_ Penetrated by Slug. 25447_ Slug penetrates K-01 Serf. 25449_ Slug penetrates Wall. 25449_ Slug penetrates Sealed Heavy Doors. 25450_ K-01 Serf collects debris. 25450_ Penetrated by Slug. 25453_ Slug penetrates Sealed Heavy Doors. 25454_ K-01 Serf collects debris. 25454_ EMDS destroyed. 25454_ Critical hit. 25454_ Centrium Leg destroyed. 25455_ System corrupted: Matter fused (-6). Map ----- +----------------------------------------------------+ | ?????????????????????????????????????????????????? | | ?????????????????????????????????????????????????? | | ?????????????????????????????????????????????????? | | ?????????????????????????????????????????????????? | | ?????????????????????????????????????????????????? | | ?????????????????????????????????????????????????? | | ?????????????????????????????????????????????????? | | ?????????????????????????????????????????????????? | | ?????????????????????????????????????????????????? | | ?????????????????????????????????????????????????? | | ?????????????????????????????????????????????????? | | ?????????????????????????????????????????????????? | | ?????????????????????????????????????????????????? | | ?????????????????????????????????????????????????? | | ?????????????????????????????????????????????????? | | ?????????????????????????????????????????????????? | | ?????????????????????????????????????????????????? | | ?????????????????????????????????????????????????? | | ?????????????????????????????????????????????????? | | ?????????????????????????????????????????????????? | | ?????????????????????????????????????????????????? | | ?????????????????????????????????????????????????? | | ?????????????????????????????????????????????????? | | ?????????????????????????????????????????????????? | | ???????????????????????#"""#?????????????????????? | | ???????????????????????# @ #?????????????????????? | | ???????????????????????# #?????????????????????? | | ????#######????????????# #?????????????????????? | | ????# ##############p p########??????????????? | | ????# T" pp #??#######?????? | | ????# " p #??# !!!?????? | | ????# #??# !]! #?? | | ????#| !########## ## #??# !!! #?? | | ###?## ##% ????## Y ## #??? #?? | | ?# ## ????# # #???? ! #?? | | ?# ## ?????# h # #????? | #?? | | # ## ?????# kh # #?????? ### | | # ##+####### # #??????? # ! | | + # ##?????###+### | | # ##+######## # ####### # | | " ## ## ??????# # T" # | | " !??# #? ??????#### ### "" / | | ??# ## ????????######?# # | | ???# ## ???????????????# ####### # | | ???# ## ??????????????#######?????## ## | | ????# ## ! ???????????????????????????# #### | | ##????# ########??????????????????????????# #??? | | ??????# ??????????????????????????????????+ +??? | | ??????# ??????????????????????????????????# #??? | | ??????? ??????????????????????????????????# #??? | +----------------------------------------------------+ Best States ------------- Heat Dissipation 131 Coolant Potential 80 Energy Generation 70 Energy Capacity 950 Matter Stores 300 Matter Capacity 300 Sight Range 16 Robot Scan Range 30 Terrain Scan Range 20 Terrain Scan Density 10 Power Amplification 30 Base Temperature (-) 200 Armor Coverage 2400 Resistance: KI 40 Resistance: TH 50 Resistance: EM 90 Power Shielding 90 Point Defense Rating 160 Phase Shifting 15 Evasion (%) 56 Targeting Accuracy 20 Target Analysis 6 Core Analysis 15 Armor Integrity Analysis 66 Recoil Reduction 4 Matter Filtering 50 Particle Charging 15 Kinecelleration 50 Salvage Targeting 4 Offensive Hacking 14 Defensive Hacking 20 Item Schematics ----------------- Hcp. Storage Unit | -9/Materials | Scanalyzed Lrn. Proton Cannon | -7/Factory | Scanalyzed Exp. Sensor Array | -7/Factory | Scanalyzed Exp. Heat Sink | -7/Factory | Scanalyzed Combat Drone Bay | -7/Data Miner | Free Lgt. Regenerative Plating | -7/Data Miner | Free Exp. Flexi-carbon Leg | -7/Data Miner | Free Exp. Cesium-ion Thruster | -7/Data Miner | Free Exp. Targeting Computer | -7/Data Miner | Free Assault Drone Bay | -5/Zhirov | Free Exp. Optical Array | -5/Zhirov | Free Imp. Arc Thrower | -5/Zhirov | Free Robot Schematics ------------------ G-50 Soldier | -7/Data Miner | Free G-67 Veteran | -7/Data Miner | Free L-41 Fighter | -7/Data Miner | Free H-66 Slayer | -7/Data Miner | Free S-27 Virus | -7/Data Miner | Free I-36 Angel | -7/Data Miner | Free Fabricated ------------ Hcp. Storage Unit | x1 | -4/Factory Hcp. Storage Unit | x1 | -4/Factory Hcp. Storage Unit | x1 | -4/Factory Alien Tech Used ----------------- Integrated Dissipator Transdimensional Reconstructor Achievements -------------- None Challenges ------------ None Game ------ Seed FrostLightningAnalyzer Manual? 0 Play Time 02:55:41 Cumulative 328.6 hours Start 2021.02.19 @ 23:03:21 End 2021.02.20 @ 02:18:15 Sessions 1 Manual Loads 0 Difficulty Rogue Special Mode None Game No. 264 Rogue 257 Adventurer 0 Explorer 7 Win Type - Total 11 Types 3/1/7/0/0/0/0/0/0 Lore% 78 Gallery% 93 Achievement% 75 Wizard Run 0 Options --------- ASCII 0 Keyboard 0 Movement Numpad Keybinds 0 Fullscreen 1 Font 18/X11Bold Map View 76x50 Tactical HUD 1 Map Filters NONE Filters NONE Steam 1 RUN: 11318a7a-1e46-4f09-89d5-05b7bbf4baae